bitfinex-derivatives/quotes_BTCF0:USTF0_20250213
["timestamp","ask_amount","ask_price","bid_price","bid_amount"]
[1739409786886,0.4262175,97930.0,97929.0,0.021]
[1739409792797,0.222,97930.0,97916.0,0.3923]
[1739409792997,0.2042425,97918.0,97916.0,0.5965464]
[1739409793194,0.4242425,97918.0,97916.0,0.5965464]
[1739409793698,0.43430284,97918.0,97916.0,0.5965464]
[1739409794098,0.43430284,97918.0,97917.0,0.00853181]
[1739409794398,0.43430284,97918.0,97917.0,0.02353181]
[1739409794593,0.43530284,97918.0,97917.0,0.02353181]
[1739409795293,0.43630284,97918.0,97917.0,0.02353181]
[1739409796394,0.23206034,97918.0,97917.0,0.02353181]
[1739409797401,0.43630284,97918.0,97917.0,0.02353181]
[1739409798496,0.59286034,97918.0,97908.0,0.00015318]
[1739409798697,0.0326,97917.0,97908.0,0.00015318]
[1739409798896,0.2226,97917.0,97908.0,0.00015318]
[1739409799604,0.2042591,97911.0,97908.0,0.00015318]
[1739409799797,0.4442591,97911.0,97908.0,0.00715318]
[1739409800299,0.24,97911.0,97909.0,0.2042608]
[1739409801304,0.254,97911.0,97909.0,0.2042608]
[1739409802103,0.24,97911.0,97909.0,0.2042608]
[1739409802301,0.254,97911.0,97909.0,0.2042608]
[1739409803109,0.261,97911.0,97909.0,0.2042608]
[1739409803912,0.2042613,97909.0,97908.0,0.00015318]
[1739409804104,0.7650613,97909.0,97908.0,0.00015318]
[1739409804507,0.7650613,97909.0,97908.0,1e-08]
[1739409805209,0.7790613,97909.0,97908.0,1e-08]
[1739409805627,0.7860613,97909.0,97908.0,1e-08]
[1739409807500,0.221,97909.0,97908.0,1e-08]
[1739409808014,0.221,97909.0,97908.0,0.06590001]
[1739409809705,0.221,97909.0,97908.0,0.09610001]
[1739409810113,0.221,97909.0,97908.0,0.45690001]
[1739409814615,0.00015318,97918.0,97908.0,0.45690001]
[1739409814616,8e-08,97918.0,97908.0,0.45690001]
[1739409814923,8e-08,97918.0,97917.0,0.5650446]
[1739409815822,0.43424258,97918.0,97917.0,0.3608]
[1739409816117,0.23100008,97918.0,97917.0,0.001]
[1739409816412,0.86624258,97918.0,97917.0,0.001]
[1739409816716,0.2042613,97909.0,97908.0,0.00900001]
[1739409816913,0.4342613,97909.0,97908.0,0.00900001]
[1739409817118,0.4342613,97909.0,97908.0,1e-08]
[1739409817313,0.7950613,97909.0,97908.0,1e-08]
[1739409818119,0.8090613,97909.0,97908.0,0.00100001]
[1739409819821,0.8150613,97909.0,97908.0,0.00200001]
[1739409826123,0.5850613,97909.0,97908.0,0.00200001]
[1739409831618,0.2242613,97909.0,97908.0,0.00200001]
[1739409832716,0.02,97909.0,97908.0,0.00200001]
[1739409832923,0.0892,97909.0,97908.0,0.00200001]
[1739409836324,0.02,97909.0,97908.0,0.00200001]
[1739409836524,0.0892,97909.0,97908.0,0.00200001]
[1739409836934,0.02,97909.0,97908.0,0.00200001]
[1739409837234,0.0892,97909.0,97908.0,0.00200001]
[1739409838032,0.2792,97909.0,97908.0,0.00200001]
[1739409838635,0.21,97909.0,97908.0,0.00200001]
[1739409838833,0.2792,97909.0,97908.0,0.00200001]
[1739409839034,0.2792,97909.0,97908.0,0.03220001]
[1739409842530,0.21,97909.0,97908.0,0.03220001]
[1739409842837,0.2792,97909.0,97908.0,0.03220001]
[1739409843832,8e-08,97918.0,97908.0,0.03220001]
[1739409844032,0.00153234,97929.0,97917.0,0.3608]
[1739409844231,0.08153234,97929.0,97928.0,0.5650217]
[1739409844943,0.08153234,97929.0,97928.0,0.57507246]
[1739409845826,0.08253234,97929.0,97928.0,0.58207246]
[1739409846025,0.08353234,97929.0,97928.0,0.59107246]
[1739409849931,0.00353234,97929.0,97928.0,0.59107246]
[1739409851446,0.00015318,97938.0,97937.0,0.2042029]
[1739409851642,0.09015318,97938.0,97937.0,0.5650029]
[1739409852942,0.09115318,97938.0,97937.0,0.5720029]
[1739409853448,0.09115318,97938.0,97937.0,0.5870029]
[1739409854142,0.09115318,97938.0,97937.0,0.5720029]
[1739409854346,0.09115318,97938.0,97937.0,0.5870029]
[1739409861452,0.14,97953.0,97937.0,0.3828]
[1739409861659,0.0306,97955.0,97954.0,0.2041675]
[1739409861852,0.0806,97955.0,97954.0,0.2041675]
[1739409863353,0.0806,97955.0,97954.0,0.2111675]
[1739409863758,0.0806,97955.0,97954.0,0.2261675]
[1739409864765,0.05,97955.0,97954.0,0.2261675]
[1739409868063,0.05,97955.0,97954.0,0.26766431]
[1739409868649,0.05,97955.0,97954.0,0.2261675]
[1739409869155,0.05,97955.0,97954.0,0.2041675]
[1739409869557,0.05,97955.0,97954.0,0.22970461]
[1739409869758,0.05,97955.0,97954.0,0.24566533]
[1739409870161,0.05,97955.0,97954.0,0.27758613]
[1739409873066,0.05,97955.0,97954.0,0.2061675]
[1739409873362,0.05,97955.0,97954.0,0.2081675]
[1739409874162,0.05,97955.0,97954.0,0.28157894]
[1739409874365,0.00015318,97964.0,97963.0,0.2041487]
[1739409874561,0.13015318,97964.0,97963.0,0.5649487]
[1739409874762,0.13015318,97964.0,97963.0,0.63836014]
[1739409875068,0.13015318,97964.0,97963.0,0.60644212]
[1739409875966,0.13015318,97964.0,97963.0,0.60644197]
[1739409876158,0.13015318,97964.0,97963.0,0.63835988]
[1739409881860,0.13015318,97964.0,97963.0,0.88241135]
[1739409882370,0.0329,97976.0,97975.0,0.2041237]
[1739409882571,0.2429,97976.0,97975.0,0.60641422]
[1739409882762,0.21,97976.0,97975.0,0.60641422]
[1739409883163,0.21,97976.0,97975.0,0.61639663]
[1739409883467,0.21,97976.0,97975.0,0.61739663]
[1739409885171,0.21,97976.0,97975.0,0.591864]
[1739409885566,0.21,97976.0,97975.0,0.59186271]
[1739409885974,0.0001531,97985.0,97981.0,0.2041112]
[1739409886171,0.0815314,97982.0,97981.0,0.2041112]
[1739409887269,0.0815314,97982.0,97981.0,0.2051112]
[1739409888469,0.08,97982.0,97981.0,0.2051112]
[1739409888874,0.08,97982.0,97981.0,0.2041112]
[1739409889171,0.08,97982.0,97981.0,0.2051112]
[1739409893378,0.08,97982.0,97981.0,0.9267112]
[1739409896089,0.0001531,97985.0,97984.0,0.204105]
[1739409897278,0.0001531,97985.0,97984.0,0.205105]
[1739409907984,0.0001531,97985.0,97981.0,0.0012]
[1739409907985,0.404256,97985.0,97981.0,0.0012]
[1739409908181,0.404256,97985.0,97975.0,0.21425881]
[1739409908382,0.561852,97985.0,97975.0,0.21425881]
[1739409909188,0.3577491,97985.0,97981.0,0.001]
[1739409909387,0.2001531,97985.0,97981.0,0.001]
[1739409910085,0.2001531,97985.0,97983.0,0.2041052]
[1739409911576,0.2021531,97985.0,97983.0,0.2041052]
[1739409912391,0.2021531,97985.0,97983.0,0.2051052]
[1739409912593,0.2021531,97985.0,97984.0,0.3608]
[1739409914496,0.2001531,97985.0,97984.0,0.3608]
[1739409914796,0.2011531,97985.0,97984.0,0.3618]
[1739409918290,0.3847885,97985.0,97984.0,0.3618]
[1739409922396,0.0011531,97985.0,97984.0,0.3618]
[1739409927191,0.205256,97985.0,97984.0,0.3618]
[1739409927906,0.756056,97985.0,97984.0,0.001]
[1739409928797,0.75609759,97985.0,97984.0,0.001]
[1739409929802,0.7662878,97985.0,97984.0,0.001]
[1739409931410,0.55199469,97985.0,97984.0,0.001]
[1739409931612,0.19119469,97985.0,97984.0,0.001]
[1739409940618,0.00119469,97985.0,97984.0,0.001]
[1739409943921,0.11119469,97985.0,97984.0,0.001]
[1739409944221,0.11119469,97985.0,97984.0,0.0321]
[1739409946020,0.11119469,97985.0,97984.0,0.0927]
[1739409950730,0.11119469,97985.0,97984.0,0.0321]
[1739409953327,0.11119469,97985.0,97984.0,0.001]
[1739409954334,0.31529749,97985.0,97984.0,0.001]
[1739409955022,0.32565542,97985.0,97984.0,0.001]
[1739409955423,0.31529749,97985.0,97984.0,0.001]
[1739409955927,0.11119469,97985.0,97984.0,0.001]
[1739409961230,0.11119469,97985.0,97984.0,0.2051049]
[1739409961431,0.11119469,97985.0,97984.0,0.001]
[1739409963141,0.2041214,97977.0,97975.0,0.0001531]
[1739409963441,0.4241214,97977.0,97975.0,0.0001531]
[1739409964534,0.4241214,97977.0,97975.0,0.0041531]
[1739409965439,0.43446964,97977.0,97975.0,0.0041531]
[1739409968833,0.22,97977.0,97975.0,0.0041531]
[1739409970143,0.22,97977.0,97976.0,0.2041216]
[1739409971742,0.22,97977.0,97976.0,0.2071216]
[1739409977840,0.3608,97984.0,97980.0,0.2041124]
[1739409978045,0.03099469,97985.0,97980.0,0.2041124]
[1739409978446,0.03099469,97985.0,97981.0,0.2041103]
[1739409978836,0.03099469,97985.0,97983.0,0.2041065]
[1739409980242,0.03299469,97985.0,97983.0,0.2041065]
[1739409980748,0.18359584,97984.0,97983.0,0.2041065]
[1739409982648,0.18559584,97984.0,97983.0,0.2041065]
[1739409984050,0.2041127,97981.0,97978.0,0.2041161]
[1739409985641,0.05164092,97984.0,97980.0,0.204112]
[1739409986146,0.05164092,97984.0,97976.0,0.3608]
[1739409986345,0.2041189,97978.0,97976.0,0.5649211]
[1739409987845,0.2041189,97978.0,97976.0,0.2071211]
[1739409988046,0.2041189,97978.0,97976.0,0.003]
[1739409989754,0.0312,97983.0,97976.0,0.003]
[1739409989949,0.0696,97982.0,97980.0,0.2041124]
[1739409990153,0.2353072,97983.0,97980.0,0.2041124]
[1739409993149,0.11614417,97982.0,97980.0,0.2041124]
[1739409993548,0.11614417,97982.0,97975.0,0.0001531]
[1739409993751,0.2041215,97976.0,97975.0,0.0001531]
[1739409993945,0.2041465,97965.0,97953.0,0.204169]
[1739409994150,0.4041465,97965.0,97954.0,0.3608]
[1739409994345,0.4041465,97965.0,97952.0,0.0328]
[1739409995150,0.41463179,97965.0,97954.0,0.0001531]
[1739409996151,0.2041653,97955.0,97954.0,0.0001531]
[1739409996462,0.4041653,97955.0,97954.0,0.0001531]
[1739409997353,0.4041653,97955.0,97954.0,0.0151531]
[1739409999250,0.4041653,97955.0,97954.0,0.0181531]
[1739409999454,0.41442031,97955.0,97954.0,0.0181531]
[1739409999660,0.41442031,97955.0,97954.0,1e-08]
[1739410001056,0.41442031,97955.0,97954.0,0.00500001]
[1739410002165,0.41642031,97955.0,97954.0,0.005]
[1739410002665,0.21125501,97955.0,97933.0,0.01043091]
[1739410002854,0.2042132,97932.0,97931.0,0.18246371]
[1739410003055,0.4142132,97932.0,97931.0,0.18246371]
[1739410003256,0.42456836,97932.0,97931.0,0.18246371]
[1739410003451,0.2042278,97925.0,97920.0,0.033]
[1739410003651,0.7750278,97925.0,97920.0,0.033]
[1739410006167,0.7770278,97925.0,97924.0,0.24805635]
[1739410006468,0.5728,97925.0,97924.0,0.004]
[1739410006681,0.64208,97925.0,97924.0,0.004]
[1739410006859,0.28132,97925.0,97924.0,0.2082299]
[1739410007058,0.0623,97925.0,97924.0,0.2082299]
[1739410007464,0.002,97925.0,97924.0,0.2082299]
[1739410009973,0.052,97925.0,97924.0,0.2082299]
[1739410010562,0.2562278,97925.0,97924.0,0.2082299]
[1739410010867,0.6170278,97925.0,97924.0,0.2082299]
[1739410011071,0.6170278,97925.0,97924.0,0.004]
[1739410012170,0.4128,97925.0,97924.0,0.004]
[1739410012472,0.48236,97925.0,97924.0,0.004]
[1739410021374,0.4128,97925.0,97924.0,0.004]
[1739410021575,0.4822,97925.0,97924.0,0.004]
[1739410024381,0.4322,97925.0,97924.0,0.004]
[1739410026481,0.3628,97925.0,97924.0,0.004]
[1739410026789,0.022,97925.0,97924.0,0.0677]
[1739410027474,0.00015318,97934.0,97933.0,0.2042111]
[1739410027786,0.04015318,97934.0,97933.0,0.2042111]
[1739410028374,0.04015318,97934.0,97933.0,0.21470576]
[1739410028575,0.04215318,97934.0,97933.0,0.21470576]
[1739410029383,0.04215318,97934.0,97933.0,0.21970576]
[1739410029583,0.24436218,97934.0,97933.0,0.005]
[1739410029771,0.24536218,97934.0,97933.0,0.005]
[1739410030976,0.04115318,97934.0,97924.0,0.24405635]
[1739410031282,0.5650278,97925.0,97924.0,0.24405635]
[1739410031481,0.7850278,97925.0,97924.0,0.24405635]
[1739410032678,0.7963736,97925.0,97924.0,0.25105635]
[1739410033891,1.02943328,97925.0,97924.0,0.007]
[1739410034282,1.03043328,97925.0,97924.0,0.007]
[1739410037192,0.84704883,97925.0,97924.0,0.007]
[1739410038087,0.2042344,97922.0,97914.0,0.2042491]
[1739410038284,0.3608,97916.0,97914.0,0.2042491]
[1739410038486,0.5908,97916.0,97914.0,0.2042491]
[1739410040393,0.5908,97916.0,97915.0,0.00815318]
[1739410040594,0.5908,97916.0,97915.0,0.01015318]
[1739410041587,0.5918,97916.0,97915.0,0.00415318]
[1739410052619,0.0510623,97915.0,97892.0,0.24405635]
[1739410052812,0.3608,97893.0,97892.0,0.24405635]
[1739410053015,0.5508,97893.0,97892.0,0.24405635]
[1739410053615,0.5508,97893.0,97892.0,0.25105635]
[1739410054015,0.5508,97893.0,97892.0,0.016]
[1739410054224,0.62004,97893.0,97892.0,0.01]
[1739410055621,0.62104,97893.0,97892.0,0.008]
[1739410060323,0.62104,97893.0,97892.0,0.2122966]
[1739410060523,0.5518,97893.0,97892.0,0.2122966]
[1739410062025,0.191,97893.0,97892.0,0.2122966]
[1739410062231,0.5518,97893.0,97892.0,0.2122966]
[1739410071737,0.3618,97893.0,97892.0,0.2122966]
[1739410074034,0.3618,97893.0,97892.0,0.2428966]
[1739410074243,0.3618,97893.0,97892.0,0.2740966]
[1739410074536,0.3818,97893.0,97892.0,0.2740966]
[1739410077141,0.3818,97893.0,97892.0,0.2122966]
[1739410080446,0.021,97893.0,97892.0,0.2122966]
[1739410080744,0.021,97893.0,97892.0,0.2432966]
[1739410087346,0.021,97893.0,97892.0,0.2122966]
[1739410098960,0.1129,97893.0,97892.0,0.2122966]
[1739410099259,0.2043113,97885.0,97884.0,0.2191]
[1739410099455,0.4043113,97885.0,97884.0,0.2191]
[1739410099657,0.7651113,97885.0,97884.0,0.2191]
[1739410099862,0.7651113,97885.0,97882.0,0.2043165]
[1739410100453,0.7661113,97885.0,97884.0,0.01]
[1739410100952,0.7661113,97885.0,97884.0,0.007]
[1739410101152,0.5618,97885.0,97884.0,0.007]
[1739410101353,0.631,97885.0,97884.0,0.007]
[1739410102057,0.631,97885.0,97883.0,0.20746758]
[1739410102058,0.632,97885.0,97883.0,0.20746758]
[1739410102361,0.5628,97885.0,97883.0,0.20746758]
[1739410103055,0.5628,97885.0,97884.0,0.003]
[1739410103256,0.63,97885.0,97884.0,0.003]
[1739410103457,0.631,97885.0,97883.0,0.20446758]
[1739410103660,0.5618,97885.0,97883.0,0.20746758]
[1739410104160,0.5618,97885.0,97884.0,0.003]
[1739410104364,0.631,97885.0,97884.0,0.003]
[1739410104950,0.63,97885.0,97884.0,0.003]
[1739410105151,0.632,97885.0,97884.0,0.003]
[1739410105562,0.632,97885.0,97883.0,0.20446758]
[1739410105866,0.5618,97885.0,97883.0,0.20746758]
[1739410106259,0.5618,97885.0,97884.0,0.003]
[1739410106460,0.631,97885.0,97884.0,0.003]
[1739410106765,0.631,97885.0,97883.0,0.20446758]
[1739410107077,0.5618,97885.0,97883.0,0.20746758]
[1739410107461,0.5618,97885.0,97884.0,0.003]
[1739410107761,0.632,97885.0,97884.0,0.003]
[1739410107962,0.8363124,97885.0,97884.0,0.003]
[1739410108158,0.7671124,97885.0,97884.0,0.003]
[1739410108563,0.7661124,97885.0,97884.0,0.003]
[1739410108959,0.7661124,97885.0,97883.0,0.01587318]
[1739410109452,0.7661124,97885.0,97884.0,0.003]
[1739410109861,0.7661124,97885.0,97883.0,0.01287318]
[1739410110066,0.7661124,97885.0,97883.0,0.01587318]
[1739410110561,0.7661124,97885.0,97884.0,0.003]
[1739410111066,0.7651124,97885.0,97884.0,0.003]
[1739410111262,0.7671124,97885.0,97884.0,0.003]
[1739410111965,0.7661124,97885.0,97884.0,0.003]
[1739410112563,0.7661124,97885.0,97883.0,0.01287318]
[1739410112761,0.7661124,97885.0,97883.0,0.01587318]
[1739410113275,0.7661124,97885.0,97884.0,0.003]
[1739410113662,0.7661124,97885.0,97883.0,0.01287318]
[1739410113858,0.7661124,97885.0,97883.0,0.01587318]
[1739410114262,0.7661124,97885.0,97883.0,0.01287318]
[1739410114477,0.7671124,97885.0,97884.0,0.003]
[1739410115668,0.7661124,97885.0,97884.0,0.003]
[1739410115866,0.7661124,97885.0,97883.0,0.01587318]
[1739410116357,0.7661124,97885.0,97883.0,0.01287318]
[1739410116563,0.7661124,97885.0,97884.0,0.003]
[1739410116961,0.7661124,97885.0,97883.0,0.01587318]
[1739410117162,0.7651124,97885.0,97883.0,0.01587318]
[1739410117370,0.7671124,97885.0,97883.0,0.01587318]
[1739410122679,0.5671124,97885.0,97883.0,0.01587318]
[1739410124077,0.3628,97885.0,97883.0,0.01587318]
[1739410124376,0.3628,97885.0,97883.0,0.22018838]
[1739410126077,0.3628,97885.0,97883.0,0.21201838]
[1739410126578,0.567112,97885.0,97883.0,0.00770318]
[1739410127069,0.567112,97885.0,97884.0,0.00817]
[1739410128079,0.566112,97885.0,97884.0,0.00817]
[1739410129678,0.566112,97885.0,97884.0,0.01117]
[1739410136383,0.566112,97885.0,97884.0,0.01571]
[1739410142291,0.508322,97885.0,97884.0,0.01571]
[1739410142890,0.62830426,97885.0,97884.0,0.01571]
[1739410143384,0.42399226,97885.0,97884.0,0.01571]
[1739410145388,0.42399226,97885.0,97884.0,0.2200233]
[1739410146889,0.35370351,97885.0,97884.0,0.2200233]
[1739410151596,0.30401,97885.0,97884.0,0.2200233]
[1739410152297,0.5083213,97885.0,97884.0,0.01571]
[1739410158795,0.55801401,97885.0,97884.0,0.01571]
[1739410162197,0.74195296,97885.0,97884.0,0.01571]
[1739410164301,0.53764166,97885.0,97884.0,0.2200233]
[1739410164501,0.26463166,97885.0,97884.0,0.2200233]
[1739410164701,0.26463166,97885.0,97884.0,0.3147233]
[1739410164906,0.01171131,97885.0,97884.0,0.3147233]
[1739410165105,0.3608,97905.0,97884.0,0.11041]
[1739410165406,0.24015318,97902.0,97901.0,0.2042779]
[1739410166698,0.24015318,97902.0,97901.0,0.2209779]
[1739410167405,0.24015318,97902.0,97901.0,0.02519321]
[1739410167617,0.00115318,97902.0,97901.0,0.44857111]
[1739410168493,0.00115318,97902.0,97901.0,0.45757111]
[1739410169003,0.21367619,97917.0,97901.0,0.56606758]
[1739410169305,0.22367619,97917.0,97916.0,0.2042466]
[1739410170199,0.00015318,97926.0,97916.0,0.5191]
[1739410170405,0.2041952,97941.0,97925.0,0.3608]
[1739410170592,0.3941952,97941.0,97930.0,0.12025175]
[1739410170796,0.3941952,97941.0,97925.0,0.5811]
[1739410170998,0.3941952,97941.0,97925.0,0.5799]
[1739410171298,0.3941952,97941.0,97938.0,0.2041997]
[1739410171499,0.3941952,97941.0,97934.0,0.3608]
[1739410171500,0.19,97941.0,97939.0,0.2041973]
[1739410171701,0.192,97941.0,97939.0,0.2041973]
[1739410172106,0.192,97941.0,97939.0,0.21445836]
[1739410172307,0.19,97941.0,97939.0,0.21445836]
[1739410172507,0.201,97941.0,97939.0,0.21445836]
[1739410173506,0.201,97941.0,97940.0,0.0318]
[1739410173701,0.27116,97941.0,97940.0,0.0318]
[1739410174605,0.26516,97941.0,97940.0,0.0318]
[1739410175701,0.26616,97941.0,97940.0,0.0318]
[1739410175902,0.26616,97941.0,97940.0,0.3926]
[1739410176599,0.197,97941.0,97940.0,0.3926]
[1739410176804,8e-08,97943.0,97941.0,0.2041944]
[1739410177008,8e-08,97943.0,97942.0,0.01276868]
[1739410177313,8e-08,97943.0,97941.0,0.5041944]
[1739410178015,8e-08,97943.0,97941.0,0.5261944]
[1739410178610,8e-08,97943.0,97941.0,0.5111944]
[1739410178917,8e-08,97943.0,97941.0,0.5231944]
[1739410179716,8e-08,97943.0,97941.0,0.5201944]
[1739410180102,8e-08,97943.0,97942.0,0.2191]
[1739410180610,8e-08,97943.0,97942.0,0.5191]
[1739410181210,8e-08,97943.0,97942.0,0.5341]
[1739410181412,8e-08,97943.0,97942.0,0.5381]
[1739410183819,8e-08,97943.0,97942.0,0.2381]
[1739410186906,8e-08,97943.0,97942.0,0.24261]
[1739410192922,8e-08,97943.0,97942.0,0.25077]
[1739410194627,8e-08,97943.0,97942.0,0.4549623]
[1739410199028,8e-08,97943.0,97942.0,0.8157623]
[1739410202016,0.23000008,97943.0,97942.0,0.4549623]
[1739410202218,0.43419028,97943.0,97942.0,0.1360623]
[1739410202729,0.23000008,97943.0,97942.0,0.1360623]
[1739410204822,0.23000008,97943.0,97913.0,0.3608]
[1739410205135,0.3608,97931.0,97930.0,0.20436888]
[1739410205430,0.5908,97931.0,97930.0,0.20436888]
[1739410206030,0.5908,97931.0,97930.0,0.21136888]
[1739410206428,0.5908,97931.0,97930.0,0.20436888]
[1739410206628,0.5908,97931.0,97930.0,0.21136888]
[1739410206824,0.5948,97931.0,97930.0,0.21136888]
[1739410207133,0.5948,97931.0,97930.0,0.20436888]
[1739410210226,0.234,97931.0,97930.0,0.20436888]
[1739410212219,0.0693305,97931.0,97930.0,0.20436888]
[1739410212423,8e-08,97943.0,97942.0,0.2041923]
[1739410212637,8e-08,97943.0,97942.0,0.5649923]
[1739410213535,8e-08,97943.0,97942.0,0.2041923]
[1739410213836,0.00400008,97943.0,97942.0,0.2041923]
[1739410214035,0.00400008,97943.0,97942.0,0.5649923]
[1739410214332,0.01200008,97943.0,97942.0,0.5659923]
[1739410215535,0.00500008,97943.0,97942.0,0.5709923]
[1739410215737,0.00100008,97943.0,97942.0,0.5719923]
[1739410216035,8e-08,97943.0,97942.0,0.5719923]
[1739410216238,8e-08,97943.0,97942.0,0.58476109]
[1739410217629,8e-08,97943.0,97942.0,0.5719923]
[1739410217829,8e-08,97943.0,97942.0,0.57876091]
[1739410218132,0.00015318,97952.0,97951.0,0.2041736]
[1739410218336,0.03015318,97952.0,97951.0,0.2041736]
[1739410220426,0.03015318,97952.0,97943.0,0.2041898]
[1739410220625,0.03015318,97952.0,97951.0,0.003]
[1739410221636,0.03015318,97952.0,97943.0,0.2041898]
[1739410221637,0.03115318,97952.0,97943.0,0.2161898]
[1739410222136,0.23532598,97952.0,97943.0,0.2161898]
[1739410222333,0.23532598,97952.0,97943.0,0.2041898]
[1739410222535,0.23932598,97952.0,97943.0,0.2081898]
[1739410222934,0.23932598,97952.0,97943.0,0.2041898]
[1739410223132,0.24132598,97952.0,97943.0,0.2041898]
[1739410223335,0.03715318,97952.0,97947.0,0.2041814]
[1739410223531,0.03715318,97952.0,97940.0,0.1824307]
[1739410224045,0.03715318,97952.0,97950.0,0.2041743]
[1739410224731,0.03515318,97952.0,97950.0,0.2041743]
[1739410225338,0.03215318,97952.0,97950.0,0.2041743]
[1739410225625,0.03115318,97952.0,97950.0,0.2041743]
[1739410226233,0.03415318,97952.0,97950.0,0.2041743]
[1739410226943,0.03315318,97952.0,97950.0,0.2041743]
[1739410227736,0.03115318,97952.0,97950.0,0.2041743]
[1739410228747,0.03215318,97952.0,97950.0,0.2041743]
[1739410228943,0.03415318,97952.0,97950.0,0.2041743]
[1739410229447,0.23832578,97952.0,97950.0,0.2041743]
[1739410230046,0.03415318,97952.0,97938.0,0.01017264]
[1739410230249,0.2041828,97947.0,97935.0,0.3608]
[1739410230443,0.0316,97946.0,97935.0,0.37098438]
[1739410230745,0.26204436,97946.0,97943.0,0.2041899]
[1739410230945,0.46622896,97946.0,97943.0,0.2041899]
[1739410231247,0.46622896,97946.0,97935.0,0.37218438]
[1739410231248,0.2041979,97940.0,97938.0,0.007]
[1739410231448,0.4041979,97940.0,97938.0,0.007]
[1739410232045,0.2,97940.0,97935.0,0.003]
[1739410232348,0.07008,97939.0,97935.0,0.003]
[1739410232536,0.07008,97939.0,97932.0,0.2042126]
[1739410232537,0.4742786,97939.0,97938.0,0.002]
[1739410232732,0.4041986,97939.0,97938.0,0.002]
[1739410233433,0.4041986,97939.0,97934.0,0.2042078]
[1739410233641,0.3608,97935.0,97934.0,0.2042078]
[1739410233841,0.5608,97935.0,97934.0,0.2042078]
[1739410234459,0.2,97935.0,97934.0,0.2042078]
[1739410235247,0.202,97935.0,97934.0,0.2042078]
[1739410235947,0.5628,97935.0,97934.0,0.2042078]
[1739410236150,0.5648,97935.0,97934.0,0.2042078]
[1739410236547,0.61446305,97935.0,97934.0,0.2042078]
[1739410240342,0.5648,97935.0,97934.0,0.2042078]
[1739410241357,0.2042133,97932.0,97930.0,0.00015318]
[1739410242761,0.2052133,97932.0,97930.0,0.00015318]
[1739410243056,0.2052133,97932.0,97930.0,0.00115318]
[1739410243648,0.4052133,97932.0,97930.0,0.00115318]
[1739410244851,0.41562128,97932.0,97930.0,0.00115318]
[1739410247556,0.0324,97931.0,97930.0,0.00115318]
[1739410247750,0.2324,97931.0,97930.0,0.00115318]
[1739410248455,0.2042372,97921.0,97916.0,0.2042456]
[1739410248757,0.3608,97920.0,97917.0,0.2042444]
[1739410248958,0.5608,97920.0,97917.0,0.2042444]
[1739410250156,0.5608,97920.0,97916.0,0.012]
[1739410250157,0.5608,97920.0,97918.0,0.2042423]
[1739410250350,0.5608,97920.0,97916.0,0.012]
[1739410250551,0.2042445,97917.0,97916.0,0.012]
[1739410250750,0.3608,97920.0,97919.0,0.2042403]
[1739410250957,0.62008,97920.0,97919.0,0.2042403]
[1739410251745,0.62108,97920.0,97919.0,0.2042403]
[1739410252155,0.62108,97920.0,97919.0,0.2072403]
[1739410252358,0.191,97920.0,97919.0,0.2072403]
[1739410252665,0.2602,97920.0,97919.0,0.2162403]
[1739410253754,0.191,97920.0,97919.0,0.2162403]
[1739410253961,0.26024,97920.0,97919.0,0.2162403]
[1739410257363,0.26024,97920.0,97919.0,0.012]
[1739410260559,0.62104,97920.0,97919.0,0.012]
[1739410262569,0.43104,97920.0,97919.0,0.012]
[1739410265763,0.66104,97920.0,97919.0,0.012]
[1739410266063,0.72624,97920.0,97919.0,0.012]
[1739410268275,0.72624,97920.0,97909.0,0.00015318]
[1739410268276,0.2042591,97910.0,97909.0,1e-08]
[1739410268464,0.7550591,97910.0,97909.0,1e-08]
[1739410269772,0.7550591,97910.0,97909.0,0.00500001]
[1739410270465,0.76526555,97910.0,97909.0,0.00500001]
[1739410270866,0.76526555,97910.0,97909.0,0.01200001]
[1739410270867,0.76726555,97910.0,97909.0,0.01200001]
[1739410271158,0.2042758,97902.0,97901.0,0.1824307]
[1739410271363,0.7950758,97902.0,97901.0,0.1824307]
[1739410272570,0.7970758,97902.0,97901.0,0.1884307]
[1739410272975,0.7970758,97902.0,97901.0,0.1934307]
[1739410273873,0.8467605,97902.0,97901.0,0.011]
[1739410274870,0.6424847,97902.0,97901.0,0.011]
[1739410277381,0.5928,97902.0,97901.0,0.011]
[1739410277683,0.66196,97902.0,97901.0,0.011]
[1739410279085,0.66196,97902.0,97901.0,0.043]
[1739410279781,0.66196,97902.0,97901.0,0.011]
[1739410279982,0.8662358,97902.0,97901.0,0.011]
[1739410280184,0.5928,97902.0,97901.0,0.011]
[1739410280391,0.66196,97902.0,97901.0,0.011]
[1739410292302,0.43196,97902.0,97901.0,0.011]
[1739410296799,0.64196,97902.0,97901.0,0.011]
[1739410299205,0.2042945,97893.0,97892.0,0.00015318]
[1739410299400,0.7850945,97893.0,97892.0,0.00015318]
[1739410300504,0.7870945,97893.0,97892.0,0.00015318]
[1739410301302,0.7850945,97893.0,97892.0,0.00015318]
[1739410301498,0.79649131,97893.0,97892.0,0.00015318]
[1739410302005,0.79749131,97893.0,97892.0,0.00315318]
[1739410302601,0.79649131,97893.0,97892.0,0.00015318]
[1739410305704,0.79649131,97893.0,97892.0,1e-08]
[1739410308711,0.84617934,97893.0,97892.0,1e-08]
[1739410317717,0.79649131,97893.0,97892.0,1e-08]
[1739410322108,0.2043223,97880.0,97865.0,0.18319489]
[1739410322310,0.07894982,97875.0,97865.0,0.18319489]
[1739410322510,0.30894982,97875.0,97865.0,0.18319489]
[1739410323517,0.07894982,97875.0,97863.0,0.01031475]
[1739410323705,0.07894982,97875.0,97874.0,0.2043342]
[1739410323910,0.3608,97876.0,97874.0,0.2043342]
[1739410324310,0.002,97875.0,97874.0,0.2043342]
[1739410325221,0.01319489,97875.0,97874.0,0.2043342]
[1739410325611,0.01319489,97875.0,97874.0,0.2073342]
[1739410325811,0.01119489,97875.0,97874.0,0.2073342]
[1739410326919,0.01319489,97875.0,97874.0,0.2073342]
[1739410329614,0.01119489,97875.0,97874.0,0.2073342]
[1739410329814,0.01319489,97875.0,97874.0,0.2073342]
[1739410330713,0.01219489,97875.0,97874.0,0.2073342]
[1739410330910,0.06188765,97875.0,97874.0,0.2073342]